fUSD/lending_fUSD_20260221
["ID","MTS","AMOUNT","RATE_DAILY","PERIOD"]
[406250938,1771660267619,-4974.30636418,0.00044779,60]
[406250939,1771660267628,-231.28369723,0.0004478,54]
[406250940,1771660267637,-239.84119403,0.0004478,60]
[406250941,1771660267647,-4625.67394464,0.0004478,54]
[406250942,1771660267656,-4796.8238806,0.0004478,60]
[406250943,1771660267666,-223.0315306,0.00044781,54]
[406250944,1771660267675,-4460.630612,0.00044781,54]
[406250945,1771660267685,-1000.0,0.00044781,30]
[406250946,1771660267694,-1000.0,0.00044781,30]
[406250947,1771660267704,-1000.0,0.00044781,30]
[406250948,1771660267713,-1000.0,0.00044781,30]
[406250949,1771660267723,-150.0,0.00044788,120]
[406250950,1771660267733,-258.31527198,0.00044795,120]
[406250951,1771660267742,-150.0,0.000448,30]
[406250952,1771660267752,-3081.0,0.000448,16]
[406250953,1771660267761,-200.349807,0.000448,27]
[406250954,1771660267770,-164.59978316,0.00044837,17]
[406250955,1771660267780,-500.0,0.00044838,64]
[406250956,1771660267789,-151.0,0.00044838,64]
[406250957,1771660267799,-151.0,0.00044838,66]
[406250958,1771660267808,-500.0,0.00044838,66]
[406250959,1771660267819,-181.08010149,0.00044838,64]
[406250960,1771660267828,-372.94109186,0.00044838,64]
[406250961,1771660267837,-151.0,0.00044838,68]
[406250962,1771660267847,-500.0,0.00044838,68]
[406250963,1771660267856,-187.78006525,0.00044838,66]
[406250964,1771660267866,-151.0,0.00044838,69]
[406250965,1771660267876,-500.0,0.00044838,69]
[406250966,1771660267885,-282.57910361,0.00044838,68]
[406250967,1771660267895,-250.0,0.00044838,64]
[406250968,1771660268094,-250.0,0.00044838,66]
[406250969,1771660268106,-500.0,0.00044838,64]
[406250970,1771660268116,-250.0,0.00044838,68]
[406250971,1771660268125,-500.0,0.00044838,66]
[406250972,1771660268134,-250.0,0.00044838,69]
[406250973,1771660268143,-500.0,0.00044838,68]
[406250974,1771660268152,-500.0,0.00044838,69]
[406250975,1771660268162,-500.0,0.00044838,64]
[406250976,1771660268171,-599.60298507,0.00044838,64]
[406250977,1771660268182,-621.78829552,0.00044838,66]
[406250978,1771660268192,-500.0,0.00044838,66]
[406250979,1771660268201,-644.79446246,0.00044838,68]
[406250980,1771660268211,-500.0,0.00044838,68]
[406250981,1771660268220,-500.0,0.00044838,69]
[406250982,1771660268231,-668.65185757,0.00044838,69]
[406250983,1771660268240,-1359.32788906,0.00044838,2]
[406250984,1771660268250,-160.1170299,0.00044838,2]
[406250985,1771660268262,-917.91751832,0.00044838,28]
[406250986,1771660268271,-183.28558134,0.00044838,30]
[406250987,1771660268281,-159.6,0.00044838,120]
[406250988,1771660268291,-151.0,0.00044839,30]
[406250989,1771660268300,-500.0,0.00044839,30]
[406250990,1771660268310,-174.61919141,0.00044839,30]
[406250991,1771660268320,-500.0,0.00044839,30]
[406250992,1771660268330,-250.0,0.00044839,30]
[406250993,1771660268339,-500.0,0.00044839,30]
[406250994,1771660268349,-215.0738,0.00044839,30]
[406250995,1771660268359,-500.0,0.00044839,30]
[406250996,1771660268368,-578.20924308,0.00044839,30]
[406250997,1771660268378,-4301.476,0.00044839,30]
[406250998,1771660268388,-151.0,0.0004484,30]
[406250999,1771660268398,-500.0,0.0004484,30]
[406251000,1771660268408,-168.3888056,0.0004484,30]
[406251001,1771660268417,-500.0,0.0004484,30]
[406251002,1771660268427,-152.84129386,0.0004484,30]
[406251003,1771660268438,-250.0,0.0004484,30]
[406251004,1771660268458,-557.5788265,0.0004484,30]
[406251005,1771660268481,-500.0,0.0004484,30]
[406251006,1771660268504,-207.4,0.0004484,30]
[406251007,1771660268526,-168.3888056,0.0004484,30]
[406251008,1771660268547,-500.0,0.0004484,30]
[406251009,1771660268571,-557.5788265,0.0004484,30]
[406251010,1771660268592,-4148.0,0.0004484,30]
[406251011,1771660268612,-151.0,0.00044841,30]
[406251012,1771660268634,-500.0,0.00044841,30]
[406251013,1771660268657,-623.6559736,0.00044841,30]
[406251014,1771660268679,-162.380719,0.00044841,30]
[406251015,1771660268701,-500.0,0.00044841,30]
[406251016,1771660268723,-151.0,0.00044841,30]
[406251017,1771660268744,-250.0,0.00044841,30]
[406251018,1771660268763,-537.6845,0.00044841,30]
[406251019,1771660268785,-500.0,0.00044841,30]
[406251020,1771660268796,-200.0,0.00044841,30]
[406251021,1771660268806,-390.70597337,0.00044841,30]
[406251022,1771660268816,-162.380719,0.00044841,30]
[406251023,1771660268826,-500.0,0.00044841,30]
[406251024,1771660268836,-537.6845,0.00044841,30]
[406251025,1771660268845,-4000.0,0.00044841,30]
[406251026,1771660268855,-500.0,0.00044859,120]
[406251027,1771660268864,-151.0,0.00044859,120]
[406251028,1771660268874,-156.587,0.00044859,120]
[406251029,1771660268884,-500.0,0.00044859,120]
[406251030,1771660268893,-500.0,0.00044859,120]
[406251031,1771660268903,-500.0,0.00044859,120]
[406251032,1771660268912,-151.0,0.00044859,120]
[406251033,1771660268922,-250.0,0.00044859,120]
[406251034,1771660268932,-518.5,0.00044859,120]
[406251035,1771660268943,-184.69909757,0.00044859,120]
[406251036,1771660268952,-500.0,0.00044859,120]
[406251037,1771660268962,-539.24,0.00044859,120]
[406251038,1771660268971,-156.587,0.00044859,120]
[406251039,1771660268981,-156.587,0.00044859,120]
[406251040,1771660268993,-500.0,0.00044859,120]
[406251041,1771660269003,-518.5,0.00044859,120]
[406251042,1771660269012,-150.0,0.00044862,2]
[406251043,1771660269023,-374.93516283,0.00044862,120]
[406251044,1771660269033,-178.34454881,0.00044862,120]
[406251045,1771660269042,-500.0,0.00044862,120]
[406251046,1771660269052,-151.0,0.00044862,120]
[406251047,1771660269062,-500.0,0.00044862,120]
[406251048,1771660269071,-151.0,0.00044862,120]
[406251049,1771660269080,-500.0,0.00044862,120]
[406251050,1771660269090,-911.64591255,0.00044862,120]
[406251051,1771660269100,-500.0,0.00044862,120]
[406251052,1771660269110,-151.0,0.00044862,120]
[406251053,1771660269119,-250.0,0.00044862,120]
[406251054,1771660269129,-500.0,0.00044862,120]
[406251055,1771660269138,-250.0,0.00044862,120]
[406251056,1771660269147,-500.0,0.00044862,120]
[406251057,1771660269157,-520.0,0.00044862,120]
[406251058,1771660269167,-168.91834196,0.00044862,120]
[406251059,1771660269177,-151.0,0.00044862,120]
[406251060,1771660269190,-151.0,0.00044862,120]
[406251061,1771660269199,-500.0,0.00044862,120]
[406251062,1771660269209,-500.0,0.00044862,120]
[406251063,1771660269218,-167708.43821524,0.00044867,7]
[406251064,1771660269483,-780.0818236,0.000158,2]
[406251065,1771660269495,-219.9181764,0.000158,2]
[406251066,1771660269504,-280.0818236,0.00039956,30]
[406251067,1771660269515,-37.9181764,0.00039956,30]
[406251068,1771660269524,-690.0,0.00039956,30]
[406251069,1771660269533,-197.9987334,0.00044867,7]
[406251070,1771660269556,-477.0,0.00041662,60]
[406251071,1771660269566,-260.0,0.00041662,60]
[406251072,1771660269576,-263.0,0.00044867,7]
[406251073,1771660269587,-720.69661148,0.00044867,7]
[406251074,1771660269598,-284.46549512,0.00044867,7]
[406251075,1771660269611,-269.34,0.00044867,7]
[406251076,1771660399110,10000.01,0.00015404,2]
[406251077,1771660399136,10000.01,0.00015404,2]
[406251078,1771660399160,10000.01,0.00015404,2]
[406251079,1771660399183,10000.01,0.00015404,2]
[406251080,1771660399204,10000.01,0.00015404,2]
[406251081,1771660399226,10000.01,0.00015404,2]
[406251082,1771660399252,10000.01,0.00015404,2]
[406251083,1771660399275,10000.01,0.00015404,2]
[406251084,1771660399299,10000.01,0.00015404,2]
[406251085,1771660399320,5000.01,0.00015404,2]
[406251086,1771660409945,-557.0,0.00015403,2]
[406251087,1771660413243,-2528.4572017,0.00015404,2]
[406251088,1771660413285,-5000.01,0.00015404,2]
[406251089,1771660413387,-5000.01,0.00015404,2]
[406251090,1771660416091,-5000.01,0.00015326,2]
[406251091,1771660416178,-5000.01,0.00015326,2]
[406251092,1771660416342,-5000.01,0.00015326,2]
[406251093,1771660418975,-9357.80701741,0.00015404,2]
[406251094,1771660419126,-5000.01,0.00015404,2]
[406251095,1771660419313,-5000.01,0.00015404,2]
[406251096,1771660421489,-10000.01,0.00015404,2]
[406251097,1771660421712,-10000.01,0.00015404,2]
[406251098,1771660421855,-10000.01,0.00015404,2]
[406251099,1771660421990,-10000.01,0.00015404,2]
[406251100,1771660422035,-5000.01,0.00015404,2]
[406251101,1771660422144,-5000.01,0.00015404,2]
[406251102,1771660422265,-5000.01,0.00015404,2]
[406251103,1771660424542,-10000.01,0.00015404,2]
[406251104,1771660425061,-5000.01,0.00015404,2]
[406251105,1771660456250,701.6,0.00019,120]
[406251107,1771660657688,6367.109971,0.00015226,2]
[406251108,1771660710298,1285.15,0.00013093,2]
[406251109,1771660710509,1285.15,0.00013215,2]
[406251110,1771660710712,1062.600029,0.00013337,2]
[406251111,1771660710748,222.549971,0.00013337,2]
[406251112,1771660710922,1285.15,0.00013458,2]
[406251113,1771660711126,1285.15,0.0001358,2]
[406251114,1771660711319,1285.15,0.00013701,2]
[406251115,1771660711517,1285.15,0.00013823,2]
[406251116,1771660711730,1285.15,0.00013945,2]
[406251117,1771660711968,1285.15,0.00014066,2]
[406251118,1771660712443,1285.15,0.00014188,2]
[406251119,1771660712658,781.410029,0.00014309,2]
[406251120,1771660712682,503.739971,0.00014309,2]
[406251121,1771660712887,1285.15,0.00014431,2]
[406251122,1771660713101,1285.15,0.00014553,2]
[406251123,1771660713310,1285.15,0.00014674,2]
[406251124,1771660713499,1285.15,0.00014796,2]
[406251125,1771660713699,1285.15,0.00014918,2]
[406251126,1771660713889,1285.15,0.00015039,2]
[406251127,1771660714308,1285.15,0.00015161,2]
[406251128,1771660729234,359.079197,0.00015149,7]
[406251129,1771660840317,151.0,0.00014634,2]
[406251130,1771660922222,-300.0,0.00015281,2]
[406251131,1771660935514,500.0,0.00014,2]
[406251132,1771660935672,500.0,0.00014,2]
[406251133,1771660935884,501.52973822,0.00014,2]
[406251134,1771660936014,500.0,0.00014,2]
[406251135,1771660936168,500.0,0.00014,2]
[406251136,1771660936510,500.0,0.00014,2]
[406251137,1771660936667,500.0,0.00014,2]
[406251138,1771660936925,500.0,0.00014,2]
[406251139,1771660937076,500.0,0.00014,2]
[406251140,1771660937181,500.0,0.00010227,2]
[406251141,1771660937426,509.42558155,0.00010227,2]
[406251142,1771660937752,500.0,0.00010227,2]
[406251143,1771660937779,511.97204466,0.00010227,2]
[406251144,1771660938281,500.0,0.00010227,2]
[406251145,1771660938382,150.0,0.00015181,2]
[406251146,1771660938823,820.71253625,0.00010227,2]
[406251147,1771660945347,501.36407877,0.00014,2]
[406251148,1771660981520,300.0,0.00015281,2]
[406251149,1771660982250,300.0,0.00015281,2]
[406251150,1771661041376,300.0,0.00015281,2]
[406251151,1771661061520,5.00602055,0.00015181,2]
[406251152,1771661061549,145.40955404,0.00015181,2]
[406251153,1771661075010,1753.94052209,0.00014939,2]
[406251154,1771661075491,292.32342035,0.00015073,2]
[406251155,1771661076033,292.32342035,0.00015223,2]
[406251156,1771661101302,300.0,0.00015281,2]
[406251157,1771661101729,1200.0,0.00015281,2]
[406251158,1771661162455,300.0,0.00015281,2]
[406251160,1771661234139,927.39,0.00015281,2]
[406251163,1771661342059,300.0,0.00015281,2]
[406251164,1771661356705,2028.91482661,0.00015204,2]
[406251165,1771661361690,1100.0,0.000145,5]
[406251166,1771661363793,2200.0,0.000146,5]
[406251167,1771661365892,3300.0,0.000147,5]
[406251168,1771661370519,963.0989,0.00015182,2]
[406251169,1771661380085,107.99627339,0.00015204,2]
[406251170,1771661380107,61.63555745,0.00015204,2]
[406251171,1771661386165,3166.37334772,0.00015204,2]
[406251172,1771661386820,4400.0,0.000148,5]
[406251173,1771661387798,2372.00109483,0.00015204,2]
[406251174,1771661387826,10000.01,0.00015204,2]
[406251175,1771661387852,10000.01,0.00015204,2]
[406251176,1771661387882,10000.01,0.00015204,2]
[406251179,1771661432042,-5500.0,0.000149,5]
[406251180,1771661432051,-743.03964673,0.00014925,2]
[406251181,1771661432068,-300.06077373,0.0001495,2]
[406251182,1771661432080,-195.0,0.0001495,2]
[406251183,1771661432089,-250.0,0.00015,2]
[406251184,1771661432099,-274.0,0.00015,2]
[406251185,1771661432109,-300.0,0.00015203,2]
[406251186,1771661432118,-300.0,0.00015203,2]
[406251187,1771661432128,-1200.0,0.00015203,2]
[406251188,1771661432137,-300.0,0.00015203,2]
[406251189,1771661432147,-2542.53377658,0.00015204,2]
[406251190,1771661432156,-11386.27086974,0.00015204,2]
[406251191,1771661432165,-195.0,0.00015282,2]
[406251192,1771661432174,-500.0,0.00015282,2]
[406251193,1771661432184,-1285.15,0.00015282,2]
[406251194,1771661432193,-500.0,0.00015282,2]
[406251195,1771661432203,-500.0,0.00015282,2]
[406251196,1771661432212,-500.0,0.00015282,2]
[406251197,1771661432222,-500.0,0.00015282,2]
[406251198,1771661432231,-500.0,0.00015282,2]
[406251199,1771661432240,-500.0,0.00015282,2]
[406251200,1771661432268,-500.0,0.00015282,2]
[406251201,1771661432279,-500.0,0.00015282,2]
[406251202,1771661432291,-195.0,0.0001529,2]
[406251203,1771661432302,-977.68014919,0.00015294,2]
[406251204,1771661432315,-263.58,0.000153,2]
[406251205,1771661432327,-1000.0,0.00015303,2]
[406251206,1771661432339,-300.0,0.00015303,2]
[406251207,1771661432350,-169361.30140078,0.00015304,2]
[406251208,1771661432365,-835.60817854,0.00015304,2]
[406251209,1771661432380,-346.84803172,0.00015304,2]
[406251210,1771661432394,-456.50541151,0.00015304,2]
[406251211,1771661432413,-343.01153381,0.00015304,2]
[406251212,1771661432426,-911.10179509,0.00015304,2]
[406251213,1771661432438,-501.0,0.00015304,2]
[406251214,1771661432450,-1445.03891421,0.00015304,2]
[406251215,1771661432464,-2351.54804654,0.00015304,2]
[406251216,1771661432480,-1000.0,0.00015304,2]
[406251220,1771661438192,-500.0,0.00015303,2]
[406251221,1771661438203,-511.84937583,0.00015303,2]
[406251222,1771661438213,-573.48621217,0.00015303,2]
[406251223,1771661438223,-500.0,0.00015303,2]
[406251224,1771661438234,-500.0,0.00015303,2]
[406251225,1771661438244,-120.91034383,0.00015303,2]
[406251226,1771661438261,-352.2251544,0.00015303,2]
[406251227,1771661438273,-26.86450177,0.00015303,2]
[406251228,1771661438283,-500.0,0.00015303,2]
[406251229,1771661438294,-500.0,0.00015303,2]
[406251230,1771661438304,-348.04746549,0.00015303,2]
[406251231,1771661438315,-192.37895213,0.00015303,2]
[406251232,1771661438326,-453.72236959,0.00015303,2]
[406251233,1771661438335,-500.0,0.00015303,2]
[406251234,1771661438345,-500.0,0.00015303,2]
[406251235,1771661438355,-500.0,0.00015303,2]
[406251236,1771661438366,-500.0,0.00015303,2]
[406251237,1771661438376,-500.0,0.00015303,2]
[406251238,1771661438386,-500.0,0.00015303,2]
[406251239,1771661438396,-500.0,0.00015303,2]
[406251240,1771661438406,-500.0,0.00015303,2]
[406251241,1771661438417,-500.0,0.00015303,2]
[406251242,1771661438427,-500.0,0.00015303,2]
[406251243,1771661438437,-500.0,0.00015303,2]
[406251244,1771661438447,-500.0,0.00015303,2]
[406251245,1771661438458,-500.0,0.00015303,2]
[406251246,1771661438468,-500.0,0.00015303,2]
[406251247,1771661438478,-500.0,0.00015303,2]
[406251248,1771661438488,-402.36685119,0.00015303,2]
[406251250,1771661438498,-500.0,0.00015303,2]
[406251253,1771661438508,-500.0,0.00015303,2]
[406251255,1771661438519,-500.0,0.00015303,2]
[406251257,1771661438529,-500.0,0.00015303,2]
[406251259,1771661438539,-500.0,0.00015303,2]
[406251261,1771661438549,-500.0,0.00015303,2]
[406251263,1771661438560,-500.0,0.00015303,2]
[406251265,1771661438571,-500.0,0.00015303,2]
[406251267,1771661438582,-500.0,0.00015303,2]
[406251269,1771661438592,-500.0,0.00015303,2]
[406251271,1771661438602,-500.0,0.00015303,2]
[406251272,1771661438612,-500.0,0.00015303,2]
[406251309,1771661438968,-3322448.0366878,0.00015304,2]
[406251313,1771661438990,-17823.28066972,0.00015304,2]
[406251315,1771661439001,-292.32342035,0.00015372,2]
[406251317,1771661439010,-7802.40803772,0.00015394,2]
[406251319,1771661439020,-977.68014919,0.00015394,2]
[406251321,1771661439030,-184.53,0.00015394,3]
[406251323,1771661439039,-150.99,0.00015403,2]
[406251325,1771661439049,-139294.35578089,0.00015404,2]
[406251327,1771661439058,-132836.64,0.00015404,2]
[406251329,1771661439067,-2077.18,0.00015404,2]
[406251331,1771661439077,-150.99,0.00015404,2]
[406251333,1771661439086,-9999.99,0.00015404,2]
[406251334,1771661439095,-1285.15,0.00015404,2]
[406251336,1771661439105,-4885.69141209,0.00015404,2]
[406251338,1771661439115,-1141.0306497,0.00015404,2]
[406251341,1771661439126,-271.60666652,0.00015404,2]
[406251342,1771661439136,-164.46005654,0.00015404,2]
[406251344,1771661439145,-622.87266686,0.00015404,2]
[406251346,1771661439154,-2754.33559866,0.00015404,2]
[406251349,1771661439164,-500.0,0.000157,2]
[406251351,1771661439174,-226.2421007,0.00015798,2]
[406251353,1771661439183,-4899.35593946,0.00015843,2]
[406251354,1771661439192,-500.0,0.00015899,2]
[406251356,1771661439201,-500.0,0.00015899,2]
[406251358,1771661439211,-500.0,0.00015899,2]
[406251360,1771661439220,-500.0,0.00015899,2]
[406251362,1771661439229,-500.0,0.00015899,2]
[406251364,1771661439238,-627.47385881,0.00015899,2]
[406251366,1771661439247,-500.0,0.00015899,2]
[406251368,1771661439257,-500.0,0.00015899,2]
[406251370,1771661439266,-500.0,0.00015899,2]
[406251372,1771661439276,-386.77491301,0.00015899,2]
[406251374,1771661439285,-500.0,0.00015899,2]
[406251376,1771661439295,-500.0,0.00015899,2]
[406251378,1771661439304,-511.47956793,0.00015899,2]
[406251380,1771661439318,-505.47338901,0.00015899,2]
[406251382,1771661439327,-500.0,0.00015899,2]
[406251384,1771661439336,-500.0,0.00015899,2]
[406251386,1771661439346,-541.91630413,0.00015899,2]
[406251389,1771661439355,-155.81953974,0.000159,2]
[406251390,1771661439365,-2346.81250728,0.0001596,2]
[406251392,1771661439374,-516.0,0.00016,2]
[406251394,1771661439383,-520.0,0.00016,2]
[406251396,1771661439393,-150.0,0.00016025,30]
[406251398,1771661439402,-1101.27976721,0.00016113,2]
[406251400,1771661439411,-500.0,0.00016173,2]
[406251402,1771661439420,-300.0,0.0001639,2]
[406251404,1771661439429,-300.0,0.0001639,2]
[406251406,1771661439438,-150.04229698,0.0001639,2]
[406251408,1771661439448,-195.0,0.0001639,2]
[406251410,1771661439457,-300.0,0.0001639,2]
[406251412,1771661439467,-500.0,0.0001639,2]
[406251414,1771661439476,-600.0,0.0001639,2]
[406251416,1771661439485,-5000.0,0.0001639,2]
[406251418,1771661439494,-510.0,0.0001642,2]
[406251420,1771661439504,-10567.37,0.00016438,2]
[406251422,1771661439513,-500.0,0.00016447,2]
[406251424,1771661439523,-166.66,0.00016515,2]
[406251426,1771661439532,-301.0,0.00016635,2]
[406251428,1771661439542,-1680.0,0.0001672,2]
[406251430,1771661439551,-628.48505003,0.00016721,2]
[406251432,1771661439560,-195.0,0.00016809,2]
[406251434,1771661439569,-500.0,0.0001681,2]
[406251436,1771661439578,-537.45672,0.0001681,2]
[406251438,1771661439587,-5000.0,0.0001681,2]
[406251440,1771661439597,-250.0,0.0001681,2]
[406251442,1771661439606,-250.0,0.0001681,2]
[406251444,1771661439615,-250.0,0.0001681,2]
[406251446,1771661439630,-4451.1035,0.00016822,2]
[406251448,1771661439640,-166.66,0.00016863,2]
[406251450,1771661439649,-7272.47,0.00016977,2]
[406251452,1771661439658,-300.0,0.00017,2]
[406251454,1771661439669,-150.0,0.00017015,2]
[406251456,1771661439678,-3240.0,0.00017106,2]
[406251458,1771661439687,-247.00553728,0.00017149,2]
[406251460,1771661439697,-150.17950014,0.0001717,2]
[406251462,1771661439707,-166.66,0.0001721,2]
[406251464,1771661439716,-275.0,0.00017447,2]
[406251466,1771661439725,-230.48671324,0.00017549,2]
[406251468,1771661439735,-166.66,0.00017558,2]
[406251470,1771661439744,-866.0,0.00017614,2]
[406251472,1771661439753,-331.0,0.00017644,2]
[406251474,1771661439763,-991.7876198,0.00017808,2]
[406251476,1771661439772,-991.7876198,0.00017808,2]
[406251478,1771661439782,-991.7876198,0.00017808,2]
[406251480,1771661439791,-991.7876198,0.00017808,2]
[406251482,1771661439800,-991.7876198,0.00017808,2]
[406251484,1771661439809,-991.7876198,0.00017808,2]
[406251486,1771661439818,-991.7876198,0.00017808,2]
[406251488,1771661439826,-991.7876198,0.00017808,2]
[406251489,1771661439837,-991.7876198,0.00017808,2]
[406251492,1771661439846,-991.7876198,0.00017808,2]
[406251493,1771661439855,-991.7876198,0.00017808,2]
[406251495,1771661439865,-991.7876198,0.00017808,2]
[406251497,1771661439875,-991.7876198,0.00017808,2]
[406251499,1771661439886,-991.7876198,0.00017808,2]
[406251501,1771661439895,-991.7876198,0.00017808,2]
[406251503,1771661439904,-991.7876198,0.00017808,2]
[406251505,1771661439914,-991.7876198,0.00017808,2]
[406251507,1771661439925,-991.7876198,0.00017808,2]
[406251509,1771661439934,-800.0,0.00017808,2]
[406251511,1771661439943,-166.66,0.00017906,2]
[406251513,1771661439952,-500.0,0.00017973,2]
[406251515,1771661439962,-501.32982636,0.00017973,2]
[406251517,1771661439971,-164.4744294,0.00017973,2]
[406251519,1771661439980,-500.0,0.00017973,2]
[406251521,1771661439989,-514.56546432,0.00017973,2]
[406251523,1771661439998,-590.39410538,0.00017973,2]
[406251525,1771661440007,-501.82753949,0.00017973,2]
[406251528,1771661440017,-502.63635996,0.00017973,2]
[406251530,1771661440026,-500.8784215,0.00017973,2]
[406251531,1771661440035,-501.37835228,0.00017973,2]
[406251534,1771661440046,-184.37223932,0.00017973,2]
[406251536,1771661440055,-501.38512914,0.00017973,2]
[406251538,1771661440064,-501.05660533,0.00017973,2]
[406251539,1771661440074,-500.41653761,0.00017973,2]
[406251542,1771661440083,-230.31122448,0.00017973,2]
[406251543,1771661440092,-165.27434071,0.00017973,2]
[406251545,1771661440102,-500.0,0.00017973,2]
[406251547,1771661440110,-453.19896023,0.00017973,2]
[406251549,1771661440120,-167.41603795,0.00017973,2]
[406251551,1771661440129,-454.60115488,0.00017973,2]
[406251553,1771661440139,-500.0,0.00017973,2]
[406251555,1771661440148,-500.0,0.00017973,2]
[406251557,1771661440158,-500.49256887,0.00017973,2]
[406251559,1771661440167,-503.58870457,0.00017973,2]
[406251561,1771661440176,-500.30226838,0.00017973,2]
[406251563,1771661440185,-500.0,0.00017973,2]
[406251565,1771661440194,-500.0,0.00017973,2]
[406251567,1771661440203,-493.47361044,0.00017973,2]
[406251569,1771661440212,-500.0,0.00017973,2]
[406251571,1771661440221,-501.02670572,0.00017973,2]
[406251573,1771661440230,-500.0,0.00017973,2]
[406251575,1771661440239,-500.18211712,0.00017973,2]
[406251577,1771661440249,-34914.56487139,0.00018207,2]
[406251579,1771661440258,-166.66,0.00018253,2]
[406251581,1771661440267,-3304.7,0.0001831,2]
[406251584,1771661440277,-2351.0,0.00018388,2]
[406251586,1771661440287,-1000.0,0.00018521,2]
[406251588,1771661440296,-1000.0,0.00018521,2]
[406251590,1771661440305,-1000.0,0.00018521,2]
[406251591,1771661440314,-1000.0,0.00018521,2]
[406251592,1771661440323,-1000.0,0.00018521,2]
[406251593,1771661440332,-201.16073928,0.00018521,2]
[406251594,1771661440341,-1001.90174129,0.00018521,2]
[406251595,1771661440350,-1004.36409669,0.00018521,2]
[406251596,1771661440359,-17823.28066971,0.00018583,2]
[406251597,1771661440367,-200.0,0.00018702,2]
[406251598,1771661440377,-378.12,0.00018827,2]
[406251599,1771661440385,-600.0,0.00018896,2]
[406251600,1771661440395,-300.72,0.00018896,2]
[406251601,1771661440404,-1473.0,0.00018899,2]
[406251603,1771661440413,-800.0,0.00018904,2]
[406251605,1771661440422,-35296.316,0.00019,2]
[406251607,1771661440431,-350.0,0.00019,2]
[406251609,1771661440440,-1500.0,0.00019068,2]
[406251611,1771661440449,-1500.0,0.00019068,2]
[406251613,1771661440459,-1500.0,0.00019068,2]
[406251615,1771661440467,-502.28837748,0.00019068,2]
[406251617,1771661440476,-1500.0,0.00019068,2]
[406251619,1771661440485,-3166.37334768,0.00019445,2]
[406251621,1771661440494,-1504.36113383,0.00019616,2]
[406251623,1771661440503,-2000.0,0.00019616,2]
[406251625,1771661440511,-942.50350226,0.00019616,2]
[406251627,1771661440521,-2000.0,0.00019616,2]
[406251629,1771661440530,-173.74378417,0.00019748,2]
[406251631,1771661440539,-414.87608384,0.00019908,2]
[406251633,1771661440549,-180.75590903,0.0002,10]
[406251635,1771661440559,-347.88537482,0.00020096,2]
[406251637,1771661440568,-1600.0,0.00020117,2]
[406251639,1771661440577,-216.12984512,0.00020149,3]
[406251641,1771661440586,-2500.0,0.00020164,2]
[406251643,1771661440595,-2500.0,0.00020164,2]
[406251645,1771661440605,-3292.0,0.00020222,2]
[406251647,1771661440614,-2505.0,0.00020292,2]
[406251648,1771661440626,-273.63693894,0.00020366,2]
[406251650,1771661440635,-3000.0,0.00020712,2]
[406251652,1771661440645,-1102.50975795,0.00020712,2]
[406251654,1771661440654,-500.0,0.00020873,2]
[406251656,1771661440664,-500.0,0.00020873,2]
[406251658,1771661440674,-500.0,0.00020873,2]
[406251660,1771661440683,-500.0,0.00020873,2]
[406251662,1771661440694,-500.0,0.00020873,2]
[406251664,1771661440703,-202.53221939,0.00020873,2]
[406251666,1771661440712,-161.00847627,0.00020873,2]
[406251668,1771661440722,-500.15086962,0.00020873,2]